bitfinex-derivatives/quotes_SOLF0:USTF0_20251209
["timestamp","ask_amount","ask_price","bid_price","bid_amount"]
[1765298054181,11.38079254,143.24,143.08,97.8524]
[1765298054182,2.0,143.25,143.15,97.8101]
[1765298054382,2.0,143.25,143.13,97.8234]
[1765298054580,2.0,143.25,143.14,97.815]
[1765298054767,0.04581826,143.21,143.18,0.0524557]
[1765298055475,0.04581826,143.21,143.18,97.8401557]
[1765298055671,0.04581826,143.21,143.18,0.0524557]
[1765298055877,0.04581826,143.21,143.19,97.781]
[1765298056075,2.0,143.25,143.18,97.8394557]
[1765298056278,2.0,143.25,143.18,0.0524557]
[1765298056483,2.0,143.25,143.18,97.8388557]
[1765298056786,2.0,143.25,143.19,6.286]
[1765298056987,2.0,143.25,143.23,97.7536]
[1765298057190,2.05152542,143.25,143.23,0.05058159]
[1765298057785,2.05152542,143.25,143.23,1.45058159]
[1765298057980,2.542e-05,143.25,143.23,1.45058159]
[1765298058176,2.542e-05,143.25,143.23,196.95938159]
[1765298058380,2.542e-05,143.25,143.23,0.05058159]
[1765298059284,2.542e-05,143.25,143.23,99.20318159]
[1765298059582,2.78852941,143.35,143.28,97.7202]
[1765298059775,2.78852941,143.35,143.27,97.7282]
[1765298059981,2.78852941,143.35,143.28,62.0]
[1765298060181,2.78852941,143.35,143.29,97.7152]
[1765298060388,2.78852941,143.35,143.28,62.0]
[1765298060585,0.05057648,143.33,143.3,0.04414137]
[1765298061083,0.05057648,143.33,143.19,97.7772]
[1765298061279,97.6914,143.33,143.17,97.7943]
[1765298061484,97.6914,143.33,143.16,97.7987]
[1765298061485,97.6987,143.32,143.16,97.7987]
[1765298061784,97.7126,143.3,143.14,97.8122]
[1765298061985,97.7255,143.28,143.11,97.8379]
[1765298062291,0.05333162,143.21,143.18,0.0449378]
[1765298062484,0.04479466,143.21,143.18,0.05228239]
[1765298062989,58.94,143.29,143.18,0.05228239]
[1765298063179,58.94,143.29,143.15,97.8082]
[1765298063381,97.6663,143.37,143.22,97.7579]
[1765298063683,97.6534,143.39,143.24,97.7459]
[1765298063878,0.04868726,143.31,143.28,0.05140672]
[1765298064284,0.04868726,143.31,143.29,62.0]
[1765298064484,0.04868726,143.31,143.28,0.05140672]
[1765298064681,97.75448726,143.31,143.17,97.7967]
[1765298064985,97.75448726,143.31,143.14,31.16172064]
[1765298064986,156.6333,143.3,143.16,97.8042]
[1765298065194,97.6854,143.34,143.18,97.7872]
[1765298065488,97.7206,143.29,143.15,104.0991]
[1765298065695,0.04529035,143.23,143.21,0.04613819]
[1765298065887,0.04858193,143.23,143.21,0.04613819]
[1765298067390,0.04858193,143.23,143.12,62.0]
[1765298067591,58.92,143.23,143.12,62.0]
[1765298067891,104.0806,143.18,143.01,97.904]
[1765298068094,104.0806,143.18,143.0,195.8203]
[1765298068095,97.8499,143.1,142.94,97.9542]
[1765298068296,97.8499,143.1,142.91,97.9749]
[1765298068297,156.7762,143.09,142.92,104.263]
[1765298068484,0.04798255,143.02,142.99,0.05321671]
[1765298068682,0.05145332,143.02,142.86,98.0096]
[1765298068889,97.8769,143.06,142.88,97.9926]
[1765298069095,97.8837,143.05,142.87,97.9999]
[1765298069298,97.8468,143.1,142.91,97.9704]
[1765298069587,97.8468,143.1,142.9,97.9777]
[1765298069588,97.8645,143.08,142.9,97.9777]
[1765298069899,0.04957004,143.02,142.99,0.0520921]
[1765298070197,0.05277697,143.02,142.99,0.05310685]
[1765298070592,58.92,143.09,142.99,0.05310685]
[1765298070894,58.92,143.09,142.93,97.9582]
[1765298071098,97.813,143.15,142.99,97.9173]
[1765298071301,58.92,143.08,142.99,97.9173]
[1765298071612,0.04531478,143.05,143.02,0.0479864]
[1765298073691,1.44531478,143.05,142.92,97.9653]
[1765298073998,58.92,143.08,142.94,97.9518]
[1765298074198,58.92,143.08,142.97,97.9314]
[1765298074392,58.92,143.08,142.98,97.9244]
[1765298074703,0.04700995,143.04,143.03,97.8897]
[1765298074904,0.04917782,143.05,143.03,97.8897]
[1765298075105,0.04782186,143.05,143.03,97.93596997]
[1765298075305,58.94,143.16,143.04,97.8797]
[1765298075504,58.94,143.16,143.06,97.8691]
[1765298075803,58.94,143.16,143.04,97.8797]
[1765298076200,0.04689125,143.11,143.09,0.04756077]
[1765298076400,0.0514231,143.11,143.09,0.04756077]
[1765298077300,1.4514231,143.11,142.98,97.9258]
[1765298077500,97.8284,143.13,142.96,97.941]
[1765298077702,97.824,143.14,142.98,97.9227]
[1765298077892,58.92,143.13,143.04,97.883]
[1765298078090,58.92,143.13,143.02,6.2935]
[1765298078411,0.04494173,143.09,143.06,0.04499541]
[1765298078800,58.92,143.08,142.99,104.215]
[1765298079200,58.92,143.08,142.99,6.2945]
[1765298079401,58.92,143.08,142.97,62.0]
[1765298079703,97.7852,143.19,142.97,62.0]
[1765298079704,0.05161768,143.04,143.02,97.8984]
[1765298079894,0.05002929,143.04,143.02,0.04917725]
[1765298080501,58.94,143.14,143.02,0.04917725]
[1765298080813,58.94,143.17,143.05,195.7513]
[1765298081099,58.94,143.17,143.04,97.8859]
[1765298081515,0.0476929,143.12,143.09,0.04740482]
[1765298081696,0.0476929,143.12,143.02,97.8974]
[1765298081697,1.4476929,143.12,142.99,97.9197]
[1765298081897,97.7715,143.21,143.04,97.8853]
[1765298082206,97.7872,143.19,143.04,97.8839]
[1765298082408,97.7986,143.17,143.02,104.1923]
[1765298082607,97.7986,143.17,143.08,0.04446747]
[1765298082608,104.093,143.16,143.08,0.04446747]
[1765298082808,6.2878,143.16,143.11,0.05297349]
[1765298083012,0.05077295,143.13,143.12,0.05271495]
[1765298083202,58.94,143.2,143.11,0.04728477]
[1765298083203,0.04531801,143.14,143.11,0.04728477]
[1765298083403,0.04796966,143.14,143.06,6.2914]
[1765298083614,58.94,143.2,143.11,0.04974826]
[1765298083803,0.04864757,143.17,143.14,0.04969433]
[1765298085701,58.94,143.2,143.14,0.04969433]
[1765298086214,58.71305341,143.2,143.15,97.8089]
[1765298086515,58.94,143.31,143.16,97.8035]
[1765298086711,58.94,143.31,143.2,6.2852]
[1765298086712,0.0491782,143.25,143.2,6.2852]
[1765298086919,0.0491782,143.25,143.22,0.05382593]
[1765298087315,0.0491782,143.25,143.23,6.284]
[1765298088018,0.0491782,143.25,143.22,0.05382593]
[1765298088215,0.0491782,143.25,143.15,97.8111]
[1765298088408,58.94,143.31,143.15,97.8111]
[1765298088920,6.2814,143.3,143.16,62.0]
[1765298089115,103.991,143.3,143.16,62.0]
[1765298089416,0.04738175,143.24,143.22,0.05016158]
[1765298089610,0.04861372,143.24,143.22,0.05244232]
[1765298090517,0.04861372,143.24,143.11,97.8375]
[1765298090815,97.7502,143.24,143.05,97.8783]
[1765298091015,97.7579,143.23,143.05,97.8783]
[1765298091206,58.92,143.22,143.08,97.8582]
[1765298091408,0.0502041,143.16,143.14,0.05188899]
[1765298091605,0.04891301,143.16,143.14,0.05188899]
[1765298093115,58.9,143.27,143.15,97.8105]
[1765298093425,58.9,143.27,143.16,97.8039]
[1765298094013,0.04706925,143.23,143.2,0.05067891]
[1765298095321,0.04706925,143.23,143.2,99.22267891]
[1765298095518,0.04706925,143.23,143.21,62.0]
[1765298095922,0.04706925,143.23,143.22,1.4]
[1765298097022,0.04706925,143.23,143.2,0.05067891]
[1765298097831,0.04706925,143.23,143.18,97.7896]
[1765298098028,0.04706925,143.23,143.14,97.8178]
[1765298098230,58.9,143.27,143.14,97.8178]
[1765298098423,65.1828,143.27,143.14,97.8178]
[1765298098618,65.1828,143.27,143.11,115.7699379]
[1765298098619,0.04931455,143.22,143.19,0.04967491]
[1765298098818,0.04931455,143.22,143.09,97.8464]
[1765298099027,6.2848,143.22,143.12,6.2891]
[1765298099329,6.2848,143.22,143.13,62.0]
[1765298099528,97.76,143.23,143.13,62.0]
[1765298099730,0.05188941,143.19,143.17,0.05233607]
[1765298099930,0.05154086,143.19,143.17,0.04859624]
[1765298101031,0.05154086,143.19,143.1,97.8448]
[1765298101327,58.88,143.21,143.15,97.8109]
[1765298101527,58.88,143.33,143.16,97.8021]
[1765298101729,58.88,143.33,143.23,6.2843]
[1765298101928,0.04554289,143.29,143.27,0.03313432]
[1765298102526,0.04554289,143.29,143.2,97.7722]
[1765298102527,0.04554289,143.29,143.2,97.7769]
[1765298102735,58.88,143.33,143.21,62.0]
[1765298103033,97.7091,143.3,143.13,97.8233]
[1765298103229,97.7377,143.26,143.11,97.8375]
[1765298103429,97.7377,143.26,143.09,97.8518]
[1765298103430,0.04544489,143.2,143.09,97.8518]
[1765298103628,0.04806499,143.16,143.09,97.8518]
[1765298104134,0.04806499,143.16,143.1,97.8451]
[1765298104433,0.04806499,143.16,143.13,97.8238]
[1765298104631,97.7175,143.29,143.12,97.8306]
[1765298104632,100.46702941,143.35,143.19,97.7789]
[1765298104823,58.88,143.34,143.22,97.7625]
[1765298105025,156.5648,143.34,143.19,97.7789]
[1765298105221,58.88,143.34,143.2,97.777]
[1765298105425,58.88,143.34,143.19,97.7836]
[1765298105632,0.05234239,143.28,143.25,0.04806499]
[1765298105833,0.04471848,143.28,143.25,0.04806499]
[1765298106129,0.04471848,143.28,143.25,62.04806499]
[1765298107140,2.78852941,143.35,143.28,97.7211]
[1765298107340,2.78852941,143.35,143.27,97.7251]
[1765298107538,2.78852941,143.35,143.26,97.7349]
[1765298107843,2.78852941,143.35,143.27,97.7278]
[1765298108040,2.78852941,143.35,143.27,6.2825]
[1765298108343,0.05374514,143.32,143.3,0.05100801]
[1765298110747,0.05374514,143.32,143.19,97.7804]
[1765298110938,2.78852941,143.35,143.19,97.7804]
[1765298111437,2.78852941,143.35,143.15,97.8108]
[1765298111438,97.6962,143.32,143.15,97.8108]
[1765298111632,97.6887,143.33,143.15,97.8108]
[1765298111633,0.04672898,143.25,143.22,0.04177546]
[1765298111831,0.04672898,143.25,143.22,6.32607546]
[1765298112036,0.04672898,143.25,143.22,0.04177546]
[1765298112841,0.04672898,143.25,143.23,97.7548]
[1765298113035,2.78852941,143.35,143.28,97.7206]
[1765298113237,2.64112354,143.35,143.3,97.7086]
[1765298113437,2.64112354,143.35,143.28,104.0041]
[1765298113648,2.64112354,143.35,143.31,97.6991]
[1765298113947,0.04639829,143.34,143.32,97.74212523]
[1765298114156,2.183e-05,143.35,143.33,97.6843]
[1765298114651,2.183e-05,143.35,143.34,1.4]
[1765298114833,2.183e-05,143.35,143.32,0.04782523]
[1765298115337,97.7678,143.22,143.19,5.87034195]
[1765298115547,58.84,143.21,143.02,97.8966]
[1765298115748,104.0209,143.26,143.08,6.2908]
[1765298116046,104.0209,143.26,143.04,17.9367379]
[1765298116047,97.7398,143.26,143.09,3.84]
[1765298116244,0.04740507,143.19,143.16,0.04794691]
[1765298116549,0.04503659,143.19,143.16,0.05292663]
[1765298116752,0.04503659,143.19,143.17,3.84]
[1765298117245,97.7234,143.28,143.17,3.84]
[1765298117553,97.7453,143.25,143.17,3.84]
[1765298117848,97.7641,143.22,143.06,97.8719]
[1765298118041,97.7708,143.21,143.07,3.84]
[1765298118348,76.7767379,143.29,143.13,0.04435897]
[1765298118349,0.05368213,143.15,143.13,0.04435897]
[1765298118535,97.7235,143.28,143.14,1.4]
[1765298118737,97.7235,143.28,143.13,97.8236]
[1765298118941,97.7235,143.28,143.14,3.78935033]
[1765298119349,156.5564,143.29,143.14,101.60675033]
[1765298119556,58.84,143.29,143.15,97.8086]
[1765298119754,0.04650073,143.23,143.2,0.05271867]
[1765298120047,0.04916827,143.23,143.21,3.78935033]
[1765298120647,2.183e-05,143.35,143.21,1.4]
[1765298120852,97.67832183,143.35,143.22,3.78935033]
[1765298121046,97.6893,143.33,143.22,3.78935033]
[1765298121253,97.67832183,143.35,143.22,3.78935033]
[1765298121847,0.04795789,143.3,143.27,0.04484584]
[1765298122247,0.04795789,143.3,143.28,3.78935033]
[1765298123051,0.04795789,143.3,143.27,0.04484584]
[1765298123249,97.75715789,143.3,143.27,0.04484584]
[1765298123550,97.7237,143.28,143.13,97.8186]
[1765298123743,97.7237,143.28,143.12,97.825]
[1765298123744,97.7237,143.28,143.14,3.78935033]
[1765298123941,58.84,143.3,143.15,159.81]
[1765298124148,97.7247,143.28,143.15,62.0]
[1765298124445,97.7163,143.29,143.16,3.78935033]
[1765298124446,97.7772,143.2,143.16,3.78935033]
[1765298124642,0.04985414,143.19,143.17,0.04460276]
[1765298124855,0.04486742,143.19,143.17,0.04460863]
[1765298125152,97.82956742,143.19,143.03,97.8931]
[1765298125348,97.7908,143.18,143.04,3.78935033]
[1765298125546,97.7774,143.2,143.04,101.67385033]
[1765298125945,97.7865,143.19,143.11,0.05306434]
[1765298126144,104.0853,143.17,143.14,0.05352547]
[1765298126354,97.8196,143.14,143.04,3.78935033]
[1765298126552,97.8123,143.15,143.04,3.78935033]
[1765298126756,0.04899047,143.1,143.08,0.05341722]
[1765298126959,0.0484559,143.1,143.08,0.05341722]
[1765298127155,97.7808,143.2,143.08,1.45341722]
[1765298127356,97.7846,143.19,143.09,65.78935033]
[1765298127556,97.7846,143.19,143.0,156.9924]
[1765298127557,97.8329,143.12,143.1,3.78935033]
[1765298127758,97.8329,143.12,142.98,97.9268]
[1765298128054,97.8186,143.14,143.0,97.9132]
[1765298128255,0.04969761,143.08,143.06,0.05234962]
[1765298128448,97.7604,143.23,143.08,97.8583]
[1765298128649,97.7787,143.2,143.08,59.08]
[1765298128847,97.7687,143.22,143.09,3.78935033]
[1765298129158,97.7793,143.2,143.09,3.78935033]
[1765298129358,97.7793,143.2,143.13,0.04425239]
[1765298129563,0.05298884,143.16,143.13,0.04425239]
[1765298129751,0.05298884,143.16,143.14,3.78935033]
[1765298130060,6.2878,143.15,143.13,0.04425239]
[1765298130760,6.2878,143.15,143.05,62.0]
[1765298130761,6.289,143.13,143.05,62.0]
[1765298130966,97.8136,143.15,143.06,3.78935033]
[1765298131468,6.2886,143.14,143.06,3.78935033]
[1765298131762,0.05023731,143.11,143.09,0.05123976]
[1765298131964,0.05252022,143.11,143.09,0.04741332]
[1765298132260,97.89172022,143.11,142.97,97.9308]
[1765298132466,6.2903,143.1,142.98,6.295]
[1765298132660,6.2903,143.1,142.98,3.63714764]
[1765298132661,97.8476,143.1,142.98,3.63714764]
[1765298133262,0.04568505,143.05,143.03,0.05032526]
[1765298133456,0.04495127,143.05,143.03,0.05032526]
[1765298133656,0.04495127,143.05,143.04,3.63714764]
[1765298134166,97.7573,143.23,143.08,97.8582]
[1765298134461,97.7573,143.23,143.07,97.8651]
[1765298134462,6.2857,143.2,143.09,6.2901]
[1765298134970,0.0473576,143.16,143.13,0.05190607]
[1765298135257,0.0473576,143.16,143.13,62.05190607]
[1765298135463,97.743,143.25,143.14,3.63714764]
[1765298135665,97.724,143.28,143.14,3.63714764]
[1765298135965,65.1631,143.26,143.14,3.63714764]
[1765298136166,97.7644,143.22,143.14,3.63714764]
[1765298136460,97.7527,143.24,143.14,3.63714764]
[1765298136461,0.04515344,143.19,143.17,0.04649115]
[1765298136661,0.05157599,143.19,143.17,0.04649115]
[1765298136854,174.5578379,143.26,143.17,3.68363879]
[1765298136855,58.88,143.26,143.17,3.68363879]
[1765298137056,156.6201,143.26,143.17,3.63714764]
[1765298137262,97.7431,143.25,143.17,3.63714764]
[1765298137568,17.9367379,143.32,143.17,3.63714764]
[1765298137569,6.2803,143.33,143.2,6.2856]
[1765298137759,97.68112183,143.35,143.18,97.7891]
[1765298137760,2.183e-05,143.35,143.23,97.7523]
[1765298138064,0.04744193,143.3,143.28,0.0451893]
[1765298138270,2.183e-05,143.35,143.28,0.0451893]
[1765298138566,2.183e-05,143.35,143.29,101.35054764]
[1765298138776,2.183e-05,143.35,143.29,3.63714764]
[1765298139256,0.04701337,143.33,143.3,103.9872]
[1765298139457,0.04701337,143.33,143.29,101.34804764]
[1765298139458,97.5968,143.47,143.32,97.6938]
[1765298139865,2.0,143.5,143.37,97.6566]
[1765298140173,2.0,143.5,143.38,97.6536]
[1765298140475,0.04554544,143.45,143.43,0.0469636]
[1765298140674,0.04982581,143.45,143.43,0.0469636]
[1765298140969,0.04982581,143.45,143.44,3.63714764]
[1765298142262,0.04982581,143.45,143.4,62.0]
[1765298142464,0.04982581,143.45,143.41,3.63714764]
[1765298142670,97.6039,143.46,143.32,3.63714764]
[1765298142861,97.6039,143.46,143.33,59.08]
[1765298143061,6.2745,143.46,143.33,59.08]
[1765298143366,0.04904428,143.41,143.38,0.04670403]
[1765298143664,2.0,143.5,143.38,97.69632809]
[1765298143873,2.0,143.5,143.39,3.63714764]
[1765298144266,97.5801,143.49,143.39,3.63714764]
[1765298144563,99.5757,143.5,143.39,3.63714764]
[1765298144768,0.04438517,143.46,143.43,0.04749069]
[1765298145267,0.04438517,143.46,143.44,3.63714764]
[1765298145464,2.0,143.5,143.43,62.04749069]
[1765298145666,2.0,143.5,143.44,3.63714764]
[1765298146559,0.04610344,143.48,143.44,3.63714764]
[1765298147462,97.63560344,143.48,143.43,0.04749069]
[1765298147663,0.04610344,143.48,143.43,0.04749069]
[1765298147867,6.2738,143.47,143.43,0.04749069]
[1765298148067,97.63720344,143.48,143.43,0.04749069]
[1765298148476,97.63720344,143.48,143.25,97.7416]
[1765298148477,97.6408,143.4,143.25,97.7416]
[1765298148666,97.656,143.38,143.26,3.63714764]
[1765298148866,97.6501,143.39,143.25,104.0245]
[1765298149164,103.9182,143.4,143.25,104.0245]
[1765298149369,0.05174019,143.34,143.31,0.04773264]
[1765298149566,97.72666849,143.34,143.31,0.05183715]
[1765298149767,97.72666849,143.34,143.22,59.04]
[1765298149974,97.7188,143.29,143.23,3.63714764]
[1765298150181,97.693,143.33,143.18,97.7898]
[1765298150375,97.6758,143.35,143.2,97.7754]
[1765298150563,103.9623,143.34,143.2,104.0609]
[1765298150765,0.04804461,143.28,143.26,0.04837448]
[1765298150965,0.04802102,143.28,143.26,0.04837448]
[1765298151161,0.04802102,143.28,143.27,3.63714764]
[1765298151377,0.04802102,143.28,143.26,0.04837448]
[1765298151378,99.17482102,143.28,143.26,0.04837448]
[1765298151579,0.04802102,143.28,143.16,156.8428]
[1765298151780,97.6917,143.33,143.19,97.7812]
[1765298152070,97.669,143.36,143.21,97.7671]
[1765298152071,97.672,143.36,143.21,97.7671]
[1765298152260,97.6917,143.33,143.18,97.7877]
[1765298152466,6.2809,143.31,143.18,97.7877]
[1765298152670,0.04929888,143.27,143.24,0.04524514]
[1765298152973,97.726,143.28,143.24,0.0523254]
[1765298153175,97.7362,143.26,143.24,0.0523254]
[1765298153474,97.7523,143.24,143.14,59.04]
[1765298153683,104.0196,143.26,143.14,59.04]
[1765298153973,6.2834,143.26,143.14,59.04]
[1765298154175,97.7038,143.31,143.14,59.04]
[1765298154176,6.2808,143.31,143.17,104.0844]
[1765298154475,0.0521496,143.25,143.23,0.04844638]
[1765298154672,0.05317689,143.25,143.23,0.04844638]
[1765298154871,6.2798,143.34,143.23,0.04844638]
[1765298155071,103.9639,143.34,143.18,97.7863]
[1765298155270,103.9639,143.34,143.19,97.7816]
[1765298155477,97.7027,143.31,143.16,97.8011]
[1765298155676,97.7297,143.27,143.14,59.04]
[1765298155973,97.7103,143.3,143.19,0.05108507]
[1765298155974,0.05080049,143.22,143.19,0.05108507]
[1765298156175,0.05016867,143.22,143.19,0.04485475]
[1765298156775,99.21536867,143.22,143.08,97.8581]
[1765298156972,97.7707,143.21,143.07,59.06]
[1765298157178,97.7638,143.22,143.08,97.8588]
[1765298157571,97.7466,143.25,143.1,97.8443]
[1765298157775,0.04716807,143.19,143.16,0.04488822]
[1765298157974,0.04543017,143.19,143.16,0.05212538]
[1765298158168,1.44543017,143.19,143.16,0.05212538]
[1765298158581,97.7908,143.18,143.07,59.06]
[1765298159479,97.7513,143.24,143.1,97.8445]
[1765298159671,0.04985832,143.18,143.16,0.05345141]
[1765298159983,0.04771167,143.18,143.16,0.05242622]
[1765298160180,97.723,143.28,143.16,0.05242622]
[1765298160371,97.7447,143.25,143.15,59.06]
[1765298160578,97.7571,143.23,143.11,62.0]
[1765298160980,97.7726,143.21,143.11,62.0]
[1765298161280,97.7726,143.21,143.02,97.8993]
[1765298161281,97.8072,143.16,143.01,97.9068]
[1765298161479,31.05041365,143.21,143.07,97.8659]
[1765298161674,128.79101365,143.26,143.1,97.8445]
[1765298161880,97.7211,143.29,143.14,97.812]
[1765298162074,97.7239,143.28,143.15,6.2874]
[1765298162274,0.04763673,143.23,143.2,0.04651057]
[1765298162472,58.84,143.33,143.2,59.12651057]
[1765298162684,97.7119,143.3,143.2,59.08]
[1765298162984,195.3286,143.37,143.21,97.7699]
[1765298163289,156.5125,143.39,143.24,97.7449]
[1765298163477,0.05044286,143.33,143.3,0.0440631]
[1765298163676,0.04618747,143.33,143.3,0.04466583]
[1765298164088,97.6084,143.45,143.3,0.04466583]
[1765298164089,195.1974,143.47,143.32,97.6949]
[1765298164276,97.6103,143.45,143.3,97.7076]
[1765298164478,97.6239,143.43,143.29,6.2817]
[1765298164782,97.6239,143.43,143.28,62.0]
[1765298164984,97.588,143.48,143.31,97.6989]
[1765298165180,0.04919636,143.41,143.38,0.04918877]
[1765298165384,0.0484789,143.41,143.38,0.043979]
[1765298166093,97.6563,143.38,143.22,97.7608]
[1765298166388,97.6682,143.36,143.2,181.5105]
[1765298166578,97.6851,143.34,143.21,59.08]
[1765298166978,0.04705555,143.29,143.26,0.04545292]
[1765298167984,97.6278,143.42,143.27,97.7289]
[1765298168490,97.635,143.41,143.27,97.7289]
[1765298168890,0.05315445,143.35,143.33,0.04492367]
[1765298169084,0.04800114,143.35,143.33,0.04492367]
[1765298170082,97.615,143.44,143.33,0.04492367]
[1765298170288,97.5934,143.47,143.33,97.6883]
[1765298170503,99.5763,143.5,143.36,97.6677]
[1765298170687,2.0,143.5,143.39,97.6434]
[1765298170885,2.0,143.5,143.41,103.9091]
[1765298171086,2.0,143.5,143.4,59.06]
[1765298171295,0.05321297,143.47,143.44,0.05316571]
[1765298172386,97.64661297,143.47,143.44,0.05316571]
[1765298172586,0.05321297,143.47,143.44,0.05316571]
[1765298172990,97.6152,143.44,143.3,97.7055]
[1765298173189,97.6282,143.42,143.28,97.7223]
[1765298173489,97.6282,143.42,143.29,163.0574]
[1765298173686,97.6282,143.42,143.29,65.3417]
[1765298173687,97.6316,143.42,143.29,65.3417]
[1765298173998,0.04675651,143.37,143.34,0.04698789]
[1765298174184,97.6716,143.36,143.18,97.7862]
[1765298174380,97.6716,143.36,143.22,97.7617]
[1765298174586,6.279,143.35,143.23,6.2839]
[1765298174785,97.6508,143.39,143.26,97.7356]
[1765298174994,97.665,143.37,143.22,97.7617]
[1765298175190,103.9434,143.37,143.24,6.2838]
[1765298175385,0.05143789,143.31,143.28,0.0497669]
[1765298175596,0.04934759,143.31,143.28,0.0529723]
[1765298175989,97.75734759,143.31,143.28,0.0529723]
[1765298176186,97.7177,143.29,143.21,59.04]
[1765298176385,97.73,143.27,143.21,59.04]
[1765298176592,97.7382,143.26,143.21,59.04]
[1765298176798,97.7443,143.25,143.21,59.04]
[1765298177101,97.7382,143.26,143.15,59.04]
[1765298177102,97.7715,143.21,143.15,59.04]
[1765298177395,0.04676866,143.19,143.17,0.04913522]
[1765298177795,97.7021,143.31,143.17,97.84583522]
[1765298177995,97.689,143.33,143.18,97.7903]
[1765298178199,299.08285427,143.51,143.24,31.05041365]
[1765298178493,299.08285427,143.51,143.29,97.7124]
[1765298178494,97.6204,143.43,143.29,97.7124]
[1765298178695,97.6089,143.45,143.31,103.9808]
[1765298178994,0.04764512,143.39,143.37,0.04542789]
[1765298179192,0.05069365,143.39,143.37,0.04704409]
[1765298179495,97.5808,143.49,143.37,1.44704409]
[1765298179686,43.83187339,143.7,143.37,31.05041365]
[1765298179886,97.5284,143.57,143.42,97.6245]
[1765298180083,97.5388,143.55,143.43,59.06]
[1765298180293,0.05160863,143.5,143.48,0.05227633]
[1765298182092,0.05160863,143.5,143.44,59.04]
[1765298182682,0.05160863,143.5,143.44,121.04]
[1765298182886,0.05160863,143.5,143.46,0.04825616]
[1765298183088,97.5908,143.48,143.38,59.04]
[1765298183298,97.5636,143.52,143.38,59.04]
[1765298183486,97.5895,143.48,143.38,59.04]
[1765298184199,0.05275856,143.44,143.42,0.0500917]
[1765298184398,97.66696384,143.44,143.42,0.0500917]
[1765298184598,6.2769,143.4,143.31,59.02]
[1765298184897,97.6241,143.43,143.31,59.02]
[1765298185094,97.6497,143.39,143.31,59.02]
[1765298185600,103.9274,143.39,143.31,59.02]
[1765298185801,97.72391485,143.36,143.34,0.05079207]
[1765298185996,97.6832,143.34,143.31,59.02]
[1765298186199,6.2805,143.32,143.24,142.72]
[1765298186405,103.977,143.32,143.24,142.72]
[1765298186704,103.977,143.32,143.24,59.02]
[1765298186894,103.977,143.32,143.27,0.0530783]
[1765298186895,0.04925917,143.29,143.27,0.0530783]
[1765298187898,6.2795,143.35,143.27,0.0530783]
[1765298188100,97.6892,143.33,143.27,0.0530783]
[1765298188300,97.6892,143.33,143.23,59.02]
[1765298188604,6.28,143.33,143.23,59.02]
[1765298188800,97.6723,143.36,143.23,59.02]
[1765298188996,0.04849907,143.31,143.28,0.04751648]
[1765298189698,0.04849907,143.31,143.2,59.02]
[1765298189904,97.6918,143.33,143.2,59.02]
[1765298190103,97.6828,143.34,143.2,156.7969]
[1765298190696,0.04972205,143.28,143.26,0.05356175]
[1765298190898,0.05334937,143.28,143.26,0.05356175]
[1765298192303,97.5608,143.52,143.38,97.6517]
[1765298192493,97.5608,143.52,143.39,59.04]
[1765298192698,97.547,143.54,143.39,59.04]
[1765298193006,103.8238,143.53,143.39,162.9638]
[1765298193201,0.05197826,143.47,143.45,0.04775042]
[1765298193407,0.05194349,143.47,143.45,0.04882937]
[1765298195809,0.05194349,143.47,143.46,6.37702476]
[1765298196009,0.05194349,143.47,143.45,0.04882937]
[1765298197403,1.45194349,143.47,143.36,6.2785]
[1765298197711,97.583,143.49,143.37,65.42387649]
[1765298197904,97.583,143.49,143.38,6.40387649]
[1765298198105,97.583,143.49,143.39,6.40387649]
[1765298198301,97.583,143.49,143.4,6.40387649]
[1765298198502,6.2737,143.48,143.41,6.40387649]
[1765298198703,0.048528,143.46,143.43,0.04580024]
[1765298199313,1.448528,143.46,143.35,59.02]
[1765298199512,1.448528,143.46,143.36,6.40890882]
[1765298199513,6.2755,143.43,143.36,6.40890882]
[1765298199705,6.2755,143.43,143.35,59.02]